fUSD/lending_fUSD_20260401
["ID","MTS","AMOUNT","RATE_DAILY","PERIOD"]
[419248633,1775047845165,-151.0,0.00015616,2]
[419248634,1775047845174,-151.0,0.00015616,2]
[419248635,1775047845183,-500.0,0.00015616,2]
[419248636,1775047845192,-500.0,0.00015616,2]
[419248637,1775047845202,-500.0,0.00015616,2]
[419248638,1775047845211,-500.0,0.00015616,2]
[419248639,1775047845220,-500.0,0.00015616,2]
[419248640,1775047845229,-500.0,0.00015616,2]
[419248641,1775047845238,-500.0,0.00015616,2]
[419248642,1775047845247,-500.0,0.00015616,2]
[419248643,1775047845257,-500.0,0.00015616,2]
[419248644,1775047845266,-500.0,0.00015616,2]
[419248645,1775047845275,-500.0,0.00015616,2]
[419248646,1775047845284,-500.0,0.00015616,2]
[419248647,1775047845294,-500.0,0.00015616,2]
[419248648,1775047845305,-500.0,0.00015616,2]
[419248649,1775047845314,-500.0,0.00015616,2]
[419248650,1775047845324,-500.0,0.00015616,2]
[419248651,1775047845334,-500.0,0.00015616,2]
[419248652,1775047845343,-500.0,0.00015616,2]
[419248653,1775047845354,-569.11643271,0.00015616,2]
[419248654,1775047845364,-150.0,0.00015616,2]
[419248655,1775047845374,-150.0,0.00015616,2]
[419248656,1775047845384,-150.0,0.00015616,2]
[419248657,1775047845393,-150.0,0.00015616,2]
[419248658,1775047845405,-150.0,0.00015616,2]
[419248659,1775047845414,-429.240195,0.00015616,2]
[419248660,1775047845423,-250.0,0.00015616,2]
[419248661,1775047845434,-429.240195,0.00015616,2]
[419248662,1775047845446,-151.0,0.00015616,2]
[419248663,1775047845455,-429.240195,0.00015616,2]
[419248664,1775047845465,-151.0,0.00015616,2]
[419248665,1775047845478,-429.240195,0.00015616,2]
[419248666,1775047845488,-150.0,0.00015616,2]
[419248667,1775047845498,-150.0,0.00015616,2]
[419248668,1775047845508,-204.22993374,0.00015616,2]
[419248669,1775047845518,-500.0,0.00015616,2]
[419248670,1775047845527,-500.0,0.00015616,2]
[419248671,1775047845537,-532.7968878,0.00015616,2]
[419248672,1775047845547,-151.0,0.00015616,2]
[419248673,1775047845556,-151.0,0.00015616,2]
[419248674,1775047845566,-151.0,0.00015616,2]
[419248675,1775047845576,-151.0,0.00015616,2]
[419248676,1775047845585,-500.0,0.00015616,2]
[419248677,1775047845595,-500.0,0.00015616,2]
[419248678,1775047845604,-500.0,0.00015616,2]
[419248679,1775047845614,-500.0,0.00015616,2]
[419248680,1775047845623,-500.0,0.00015616,2]
[419248681,1775047845632,-500.0,0.00015616,2]
[419248682,1775047845641,-500.0,0.00015616,2]
[419248683,1775047845650,-388.07199871,0.00015616,2]
[419248684,1775047845660,-151.0,0.00015616,2]
[419248685,1775047845670,-151.0,0.00015616,2]
[419248686,1775047845679,-151.0,0.00015616,2]
[419248687,1775047845689,-151.0,0.00015616,2]
[419248688,1775047845699,-151.0,0.00015616,2]
[419248689,1775047845708,-206.0,0.00015637,2]
[419248690,1775047845718,-500.0,0.00015639,2]
[419248691,1775047845728,-1524.0,0.00015641,2]
[419248692,1775047845739,-1524.0,0.00015641,2]
[419248693,1775047845749,-1524.0,0.00015641,2]
[419248694,1775047845759,-1524.0,0.00015641,2]
[419248695,1775047845769,-1524.0,0.00015641,2]
[419248696,1775047845779,-1524.0,0.00015641,2]
[419248697,1775047845788,-1524.0,0.00015641,2]
[419248698,1775047845797,-1524.0,0.00015641,2]
[419248699,1775047845807,-1524.0,0.00015641,2]
[419248700,1775047845816,-340.17795516,0.00015658,2]
[419248701,1775047845826,-206.0,0.00015658,2]
[419248702,1775047845835,-206.0,0.00015675,2]
[419248703,1775047845844,-206.0,0.00015695,2]
[419248704,1775047845853,-3251.541,0.00015697,2]
[419248705,1775047845863,-180.802,0.00015697,2]
[419248706,1775047845872,-206.0,0.00015742,2]
[419248707,1775047845882,-292.87113226,0.00015753,2]
[419248708,1775047845891,-1882.94,0.00015753,2]
[419248709,1775047845901,-338.91999275,0.0001576,2]
[419248710,1775047845910,-459.61561724,0.0001576,2]
[419248711,1775047845920,-298.58091018,0.00015764,2]
[419248712,1775047845929,-206.0,0.00015775,2]
[419248713,1775047845938,-879.93134742,0.00015819,2]
[419248714,1775047845948,-553.36814293,0.00015821,2]
[419248715,1775047845957,-151.0,0.00015837,2]
[419248716,1775047845966,-128106.53871111,0.0001584,2]
[419248717,1775047845975,-151.0,0.0001584,2]
[419248718,1775047845984,-151.0,0.0001584,2]
[419248719,1775047845993,-151.0,0.0001584,2]
[419248720,1775047846002,-2000.0,0.0001584,2]
[419248721,1775047846012,-2000.0,0.0001584,2]
[419248722,1775047846020,-2000.0,0.0001584,2]
[419248723,1775047846030,-1100.43,0.00015862,30]
[419248724,1775047846039,-350.0,0.00015863,2]
[419248725,1775047846048,-500.0,0.00015873,2]
[419248726,1775047846058,-509.88873086,0.00015873,2]
[419248727,1775047846067,-500.0,0.00015873,2]
[419248728,1775047846076,-500.0,0.00015873,2]
[419248729,1775047846085,-452.97866013,0.00015873,2]
[419248730,1775047846095,-306.259251,0.00015875,2]
[419248731,1775047846104,-544.18197644,0.00015875,2]
[419248732,1775047846113,-177.79390293,0.00015877,2]
[419248733,1775047846124,-177.77447617,0.00015877,2]
[419248734,1775047846135,-544.18197644,0.00015888,2]
[419248735,1775047846145,-2500.0,0.00015892,2]
[419248736,1775047846154,-505.0,0.00015898,4]
[419248737,1775047846164,-15329.29856303,0.000159,2]
[419248738,1775047846173,-544.18197644,0.000159,2]
[419248739,1775047846183,-8926.70864914,0.000159,2]
[419248740,1775047846193,-2425.43807152,0.000159,2]
[419248741,1775047846202,-251.15849308,0.000159,2]
[419248742,1775047846211,-150.71162126,0.000159,2]
[419248743,1775047846220,-156.0,0.000159,2]
[419248745,1775047846230,-173.3840015,0.000159,2]
[419248746,1775047846239,-71887.43532319,0.000159,2]
[419248747,1775047846249,-401.0,0.00015904,2]
[419248748,1775047846259,-206.0,0.00015948,2]
[419248749,1775047846268,-187.78006525,0.00015954,2]
[419248750,1775047846278,-200.0,0.00015954,2]
[419248751,1775047846287,-217.15233878,0.00015954,2]
[419248752,1775047846297,-200.0,0.00015954,2]
[419248753,1775047846306,-1481.23780761,0.00015954,2]
[419248754,1775047846316,-799.54513345,0.00015954,2]
[419248755,1775047846326,-296.57605829,0.00015954,2]
[419248756,1775047846336,-154.94225416,0.00015965,2]
[419248757,1775047846345,-5911.7951959,0.00015975,2]
[419248758,1775047846354,-17011.1896587,0.00015975,2]
[419248759,1775047846364,-151.0,0.00015975,2]
[419248760,1775047846373,-151.0,0.00015975,2]
[419248761,1775047846382,-72457.9775135,0.00015975,2]
[419248762,1775047846392,-151.0,0.00015975,2]
[419248763,1775047846401,-151.0,0.00015975,2]
[419248764,1775047846410,-23361.3781818,0.00015975,2]
[419248765,1775047846420,-429.240195,0.00015975,2]
[419248766,1775047846429,-429.240195,0.00015975,2]
[419248767,1775047846439,-151.0,0.00015975,2]
[419248768,1775047846448,-429.240195,0.00015975,2]
[419248769,1775047846458,-151.0,0.00015975,2]
[419248770,1775047846467,-429.240195,0.00015975,2]
[419248771,1775047846477,-151.0,0.00015975,2]
[419248772,1775047846486,-151.0,0.00015975,2]
[419248773,1775047846495,-151.0,0.00015975,2]
[419248774,1775047846505,-151.0,0.00015975,2]
[419248775,1775047846515,-270.664937,0.00015975,2]
[419248776,1775047846524,-270.664937,0.00015975,2]
[419248777,1775047846533,-270.664937,0.00015975,2]
[419248778,1775047846543,-270.664937,0.00015975,2]
[419248779,1775047846553,-41876.5576221,0.00015975,2]
[419248780,1775047846563,-151.0,0.00015975,2]
[419248781,1775047846573,-151.0,0.00015975,2]
[419248782,1775047846583,-151.0,0.00015975,2]
[419248783,1775047846592,-151.0,0.00015975,2]
[419248784,1775047846602,-151.0,0.00015975,2]
[419248785,1775047846612,-151.0,0.00015975,2]
[419248786,1775047846622,-151.0,0.00015975,2]
[419248787,1775047846632,-151.0,0.00015975,2]
[419248788,1775047846641,-3105.8263888,0.00015975,2]
[419248789,1775047846651,-349398.3531058,0.00015975,2]
[419248790,1775047846660,-586.750534,0.00015975,2]
[419248791,1775047846671,-586.750534,0.00015975,2]
[419248792,1775047846681,-586.750534,0.00015975,2]
[419248793,1775047846691,-586.750534,0.00015975,2]
[419248794,1775047846700,-1549.4144627,0.00015975,2]
[419248795,1775047846711,-151.0,0.00015975,2]
[419248796,1775047846722,-152.348904,0.00015975,2]
[419248797,1775047846731,-679.78354759,0.00015987,2]
[419248798,1775047846743,-155.0,0.00015989,2]
[419248799,1775047846758,-154.94225416,0.0001599,2]
[419248800,1775047846767,-154.94225416,0.0001599,2]
[419248801,1775047846778,-151.0,0.00015997,2]
[419248802,1775047846789,-672.00857251,0.00015999,2]
[419248803,1775047846800,-3340621.70018202,0.00016,2]
[419248809,1775047848303,-2019.91513355,0.00016,2]
[419248810,1775047848772,-632.34,0.00015068,2]
[419248811,1775047848783,-1524.0,0.00015641,2]
[419248812,1775047848792,-503.59475991,0.00016,2]
[419248813,1775047849040,-1145.03004215,0.00015094,2]
[419248814,1775047849049,-1029.48793271,0.00015094,2]
[419248815,1775047849059,-584.21951503,0.000159,2]
[419248816,1775047849070,-3593.33255661,0.000159,2]
[419248817,1775047849080,-5363.24378146,0.00016,2]
[419248818,1775047849092,-189537.36428705,0.00016,2]
[419248819,1775047849115,-1385.70004698,0.00016,2]
[419248820,1775047849126,-399.48050875,0.00016,2]
[419248821,1775047849141,-42349.76333062,0.00016,2]
[419248822,1775047849155,-4294.03441302,0.00016,2]
[419248823,1775047849166,-2078.31393325,0.00016,2]
[419248824,1775047849178,-910.07126,0.00016,2]
[419248825,1775047849191,-449.1439667,0.00016,2]
[419248826,1775047849202,-719.249995,0.00016,2]
[419248827,1775047849214,-966.59,0.00016,2]
[419248828,1775047849226,-1771.7918838,0.00016,2]
[419248832,1775048221771,2083.89,0.000105,30]
[419248847,1775049032397,-500.0,9.499e-05,2]
[419248848,1775049032407,-500.0,9.499e-05,2]
[419248849,1775049032417,-457.06904724,9.499e-05,2]
[419248850,1775049032426,-500.0,9.499e-05,2]
[419248851,1775049032436,-691.65646558,9.5e-05,3]
[419248852,1775049032448,-6208.02172506,9.5e-05,3]
[419248853,1775049032475,-405.23147994,9.5e-05,3]
[419248854,1775049032584,-7153.26184371,9.5e-05,3]
[419248857,1775049037605,-1343.44849106,9.5e-05,3]
[419248858,1775049037690,-1648.194,9.5e-05,3]
[419248859,1775049037701,-1382.06179791,9.5e-05,3]
[419248860,1775049037803,-11193.98425145,9.5e-05,3]
[419248861,1775049037907,-602.72871732,9.5e-05,3]
[419248862,1775049037920,-1178.97743423,9.5e-05,3]
[419248863,1775049037932,-4052.38148564,9.5e-05,3]
[419248864,1775049037943,-305.94182615,9.5e-05,3]
[419248865,1775049037956,-3430.25670064,9.5e-05,3]
[419248866,1775049037967,-4494.49913023,9.5e-05,3]
[419248919,1775049040422,-1362.0,9.5e-05,3]
[419248920,1775049040794,-16554.64331122,9.5e-05,3]
[419248921,1775049040814,-1025.49280924,9.5e-05,3]
[419248922,1775049040825,-69551.03123433,9.5e-05,3]
[419248923,1775049040835,-590.0,9.571e-05,2]
[419248924,1775049040844,-250.0,9.91e-05,2]
[419248925,1775049040856,-31721.0,0.0001,2]
[419248926,1775049040865,-300.0,0.00010099,2]
[419248927,1775049040875,-882.0,0.00010099,2]
[419248928,1775049040884,-5534.0,0.000102,3]
[419248929,1775049040894,-318.03,0.00010249,2]
[419248930,1775049040904,-5534.0,0.000105,5]
[419248932,1775049040914,-250.0,0.00010528,2]
[419248934,1775049040924,-250.0,0.00010555,2]
[419248935,1775049040934,-397.81,0.00010615,2]
[419248936,1775049040943,-2964.92,0.00010916,2]
[419248937,1775049040952,-1693.98939059,0.00011,2]
[419248938,1775049040962,-420.0,0.00011108,2]
[419248939,1775049040972,-1406.76261716,0.00011342,2]
[419248940,1775049040982,-4635.64,0.00011415,2]
[419248941,1775049040993,-500.0,0.00011423,2]
[419248942,1775049041003,-151.0,0.00011423,2]
[419248943,1775049041013,-151.0,0.00011423,2]
[419248944,1775049041023,-151.0,0.00011423,2]
[419248945,1775049041033,-151.0,0.00011423,2]
[419248946,1775049041043,-151.0,0.00011423,2]
[419248947,1775049041053,-151.0,0.00011423,2]
[419248948,1775049041062,-151.0,0.00011423,2]
[419248949,1775049041072,-151.0,0.00011423,2]
[419248950,1775049041082,-151.0,0.00011423,2]
[419248951,1775049041091,-151.0,0.00011423,2]
[419248952,1775049041102,-151.0,0.00011423,2]
[419248953,1775049041111,-151.0,0.00011423,2]
[419248954,1775049041120,-152.5578191,0.00011423,2]
[419248955,1775049041130,-150.0,0.00011429,2]
[419248956,1775049041140,-358.30266083,0.00011429,2]
[419248957,1775049041149,-500.0,0.00011429,2]
[419248958,1775049041158,-500.0,0.00011429,2]
[419248959,1775049041167,-218.51346411,0.00011429,2]
[419248960,1775049041177,-500.0,0.00011429,2]
[419248961,1775049041186,-500.0,0.00011429,2]
[419248962,1775049041195,-205.96901606,0.00011429,2]
[419248963,1775049041205,-500.0,0.00011429,2]
[419248964,1775049041215,-474.26628968,0.00011429,2]
[419248965,1775049041225,-500.0,0.00011429,2]
[419248966,1775049041234,-500.0,0.00011429,2]
[419248967,1775049041243,-500.0,0.00011429,2]
[419248968,1775049041253,-500.0,0.00011429,2]
[419248969,1775049041262,-410767.3108,0.0001143,2]
[419248970,1775049041271,-391.08,0.00011442,2]
[419248971,1775049041281,-10750.26323356,0.000115,2]
[419248972,1775049041290,-150.0,0.000116,2]
[419248973,1775049041299,-1406.76261711,0.00011848,2]
[419248974,1775049041308,-10750.2632335,0.00011989,2]
[419248975,1775049041318,-587.0,0.00012217,2]
[419248976,1775049041327,-9230.41,0.00012289,2]
[419248977,1775049041337,-1406.76261711,0.00012355,2]
[419248978,1775049041346,-10750.2632335,0.00012478,2]
[419248979,1775049041356,-250.0,0.00012646,2]
[419248980,1775049041365,-535.71,0.00012728,2]
[419248981,1775049041375,-180.25,0.0001273,2]
[419248982,1775049041384,-1406.76261711,0.00012861,2]
[419248983,1775049041395,-5328.6287,0.00012887,2]
[419248984,1775049041405,-192.2211,0.000129,7]
[419248985,1775049041415,-10750.2632335,0.00012967,2]
[419248986,1775049041426,-250.0,0.00013,2]
[419248987,1775049041436,-505.0,0.00013111,2]
[419248988,1775049041446,-1406.76261711,0.00013368,2]
[419248989,1775049041455,-33017.9749,0.00013372,2]
[419248990,1775049041464,-1000.0,0.00013372,2]
[419248991,1775049041474,-3240.0,0.00013425,2]
[419248992,1775049041483,-823.0,0.00013438,2]
[419248993,1775049041492,-10750.2632335,0.00013456,2]
[419248994,1775049041501,-1225.33,0.00013698,2]
[419248995,1775049041511,-1225.33,0.00013698,2]
[419248996,1775049041520,-1225.33,0.00013698,2]
[419248997,1775049041529,-1225.33,0.00013698,2]
[419248998,1775049041539,-1225.33,0.00013698,2]
[419248999,1775049041548,-1225.33,0.00013698,2]
[419249000,1775049041557,-1225.33,0.00013698,2]
[419249001,1775049041567,-500.0,0.00013698,2]
[419249002,1775049041576,-500.0,0.00013698,2]
[419249003,1775049041586,-500.0,0.00013698,2]
[419249004,1775049041596,-500.0,0.00013698,2]
[419249005,1775049041605,-500.0,0.00013698,2]
[419249006,1775049041615,-500.0,0.00013698,2]
[419249007,1775049041624,-500.0,0.00013698,2]
[419249008,1775049041633,-500.0,0.00013698,2]
[419249009,1775049041643,-500.0,0.00013698,2]
[419249010,1775049041652,-500.0,0.00013698,2]
[419249011,1775049041661,-500.0,0.00013698,2]
[419249012,1775049041671,-500.0,0.00013698,2]
[419249013,1775049041680,-500.0,0.00013698,2]
[419249014,1775049041689,-500.0,0.00013698,2]
[419249015,1775049041699,-496.70449516,0.00013698,2]
[419249016,1775049041710,-500.0,0.00013698,2]
[419249017,1775049041719,-209.19964138,0.00013698,2]
[419249018,1775049041729,-500.0,0.00013698,2]
[419249019,1775049041740,-500.0,0.00013698,2]
[419249020,1775049041750,-200.0,0.00013699,2]
[419249021,1775049041759,-7346.78,0.00013699,2]
[419249022,1775049041769,-157.6058664,0.00013699,2]
[419249023,1775049041779,-639.59658678,0.00013699,2]
[419249024,1775049041789,-1406.76261711,0.00013874,2]
[419249025,1775049041798,-500.0,0.0001389,2]
[419249026,1775049041808,-10750.2632335,0.00013944,2]
[419249027,1775049041818,-246.3264,0.000142,12]
[419249028,1775049041827,-1500.0,0.00014302,2]
[419249029,1775049041837,-1406.76261711,0.00014381,2]
[419249030,1775049041847,-10750.2632335,0.00014433,2]
[419249031,1775049041858,-500.0,0.00014438,2]
[419249032,1775049041867,-14877.74,0.00014718,2]
[419249033,1775049041877,-1152.0,0.0001478,2]
[419249034,1775049041886,-500.0,0.00014786,2]
[419249035,1775049041896,-500.0,0.00014786,2]
[419249036,1775049041906,-312.57026801,0.00014786,2]
[419249037,1775049041915,-452.97866013,0.00014786,2]
[419249038,1775049041925,-500.0,0.00014786,2]
[419249039,1775049041935,-509.88873086,0.00014786,2]
[419249040,1775049041944,-342.86927072,0.00014786,2]
[419249041,1775049041954,-500.0,0.00014786,2]
[419249042,1775049041964,-500.0,0.000148,2]
[419249043,1775049041974,-151.0,0.00014832,2]
[419249044,1775049041984,-166.66,0.00014848,2]
[419249045,1775049041994,-3776.85,0.00014853,2]
[419249046,1775049042004,-578.20924308,0.00014858,2]
[419249047,1775049042014,-500.0,0.00014858,2]
[419249048,1775049042024,-9211.34798985,0.00014858,2]
[419249049,1775049042033,-1377.42282659,0.00014858,2]
[419249050,1775049042042,-500.0,0.00014858,2]
[419249051,1775049042052,-201.93286099,0.00014858,2]
[419249052,1775049042061,-500.0,0.00014858,2]
[419249053,1775049042070,-500.0,0.00014858,2]
[419249054,1775049042080,-500.0,0.00014858,2]
[419249055,1775049042090,-500.0,0.00014858,2]
[419249056,1775049042099,-500.0,0.00014858,2]
[419249057,1775049042109,-500.0,0.00014858,2]
[419249058,1775049042119,-500.0,0.00014858,2]
[419249059,1775049042128,-500.0,0.00014858,2]
[419249060,1775049042138,-200.0,0.00014858,2]
[419249061,1775049042147,-500.0,0.00014858,2]
[419249062,1775049042156,-500.0,0.00014858,2]
[419249063,1775049042165,-500.0,0.00014858,2]
[419249064,1775049042175,-500.0,0.00014858,2]
[419249065,1775049042184,-500.0,0.00014858,2]
[419249066,1775049042194,-500.0,0.00014858,2]
[419249067,1775049042203,-500.0,0.00014858,2]
[419249068,1775049042213,-500.0,0.00014858,2]
[419249069,1775049042222,-151.0,0.00014858,2]
[419249070,1775049042231,-500.0,0.00014858,2]
[419249071,1775049042241,-500.0,0.00014858,2]
[419249072,1775049042250,-500.0,0.00014858,2]
[419249073,1775049042260,-500.0,0.00014858,2]
[419249074,1775049042269,-500.0,0.00014858,2]
[419249075,1775049042279,-500.0,0.00014858,2]
[419249076,1775049042288,-500.0,0.00014858,2]
[419249077,1775049042298,-200.0,0.00014858,2]
[419249078,1775049042307,-174.61919141,0.00014858,2]
[419249079,1775049042316,-500.0,0.00014858,2]
[419249080,1775049042326,-500.0,0.00014858,2]
[419249081,1775049042335,-500.0,0.00014858,2]
[419249082,1775049042345,-250.0,0.00014858,2]
[419249083,1775049042354,-500.0,0.00014858,2]
[419249084,1775049042363,-250.0,0.00014858,2]
[419249085,1775049042373,-500.0,0.00014858,2]
[419249086,1775049042382,-250.0,0.00014858,2]
[419249087,1775049042392,-500.0,0.00014858,2]
[419249088,1775049042401,-250.0,0.00014858,2]
[419249089,1775049042410,-500.0,0.00014858,2]
[419249090,1775049042419,-500.0,0.00014858,2]
[419249091,1775049042429,-250.0,0.00014858,2]
[419249092,1775049042438,-500.0,0.00014858,2]
[419249093,1775049042447,-250.0,0.00014858,2]
[419249094,1775049042456,-500.0,0.00014858,2]
[419249095,1775049042466,-250.0,0.00014858,2]
[419249096,1775049042475,-500.0,0.00014858,2]
[419249097,1775049042485,-500.0,0.00014858,2]
[419249098,1775049042495,-250.0,0.00014858,2]
[419249100,1775049042504,-250.0,0.00014858,2]
[419249101,1775049042513,-250.0,0.00014858,2]
[419249102,1775049042522,-250.0,0.00014858,2]
[419249103,1775049042532,-250.0,0.00014858,2]
[419249104,1775049042541,-262.90206542,0.00014858,2]
[419249105,1775049042551,-743.50770149,0.00014858,2]
[419249106,1775049042560,-279.9045709,0.00014858,2]
[419249107,1775049042569,-500.0,0.00014858,2]
[419249108,1775049042579,-500.0,0.00014858,2]
[419249109,1775049042588,-500.0,0.00014858,2]
[419249110,1775049042597,-500.0,0.00014858,2]
[419249111,1775049042607,-500.0,0.00014858,2]
[419249112,1775049042617,-1406.76261711,0.00014887,2]
[419249113,1775049042626,-9552.16786547,0.00014913,2]
[419249114,1775049042635,-500.0,0.00014913,2]
[419249115,1775049042644,-151.0,0.00014913,2]
[419249116,1775049042653,-272.62944185,0.00014913,2]
[419249117,1775049042662,-10750.2632335,0.00014922,2]
[419249118,1775049042671,-1225.33,0.00014928,2]
[419249119,1775049042681,-500.0,0.00014928,2]
[419249120,1775049042690,-500.0,0.00014928,2]
[419249121,1775049042700,-9905.5980765,0.00014968,2]
[419249122,1775049042710,-500.0,0.00014968,2]
[419249123,1775049042719,-151.0,0.00014968,2]
[419249124,1775049042728,-282.71673119,0.00014968,2]
[419249125,1775049042738,-500.0,0.00014973,2]
[419249126,1775049042747,-500.0,0.00014973,2]
[419249127,1775049042756,-500.0,0.00014973,2]
[419249128,1775049042765,-500.0,0.00014973,2]
[419249129,1775049042774,-300.0,0.00015,2]
[419249130,1775049042783,-500.0,0.00015,2]
[419249131,1775049042792,-500.0,0.00015,2]
[419249132,1775049042801,-500.0,0.00015,2]
[419249133,1775049042810,-500.0,0.00015,2]
[419249134,1775049042819,-500.0,0.00015,2]
[419249135,1775049042828,-500.0,0.00015,2]
[419249136,1775049042836,-500.0,0.00015,2]
[419249137,1775049042846,-500.0,0.00015,2]
[419249138,1775049042856,-500.0,0.00015,2]
[419249139,1775049042864,-500.0,0.00015,2]
[419249140,1775049042874,-500.0,0.00015,2]
[419249141,1775049042884,-500.0,0.00015,2]
[419249142,1775049042894,-500.0,0.00015,2]
[419249143,1775049042903,-500.0,0.00015,2]
[419249144,1775049042913,-500.0,0.00015,2]
[419249145,1775049042924,-500.0,0.00015,2]
[419249146,1775049042933,-500.0,0.00015,2]
[419249147,1775049042943,-500.0,0.00015,2]
[419249148,1775049042953,-500.0,0.00015,2]
[419249149,1775049042962,-500.0,0.00015,2]
[419249150,1775049042971,-500.0,0.00015,2]
[419249151,1775049042982,-500.0,0.00015,2]
[419249152,1775049042991,-500.0,0.00015,2]
[419249153,1775049043297,-264.73,0.00015,2]
[419249154,1775049043307,-500.0,0.00015,2]
[419249155,1775049043317,-500.0,0.00015,2]
[419249156,1775049043327,-500.0,0.00015,2]
[419249157,1775049043337,-500.0,0.00015,2]
[419249158,1775049043346,-500.0,0.00015,2]
[419249159,1775049043358,-500.0,0.00015,2]
[419249160,1775049043368,-500.0,0.00015,2]
[419249161,1775049043378,-500.0,0.00015,2]
[419249162,1775049043388,-500.0,0.00015,2]
[419249163,1775049043398,-500.0,0.00015,2]
[419249164,1775049043409,-500.0,0.00015,2]
[419249165,1775049043419,-500.0,0.00015,2]
[419249166,1775049043428,-500.0,0.00015,2]
[419249167,1775049043439,-500.0,0.00015,2]
[419249168,1775049043448,-500.0,0.00015,2]
[419249169,1775049043458,-500.0,0.00015,2]
[419249170,1775049043468,-500.0,0.00015,2]
[419249171,1775049043478,-500.0,0.00015,2]
[419249172,1775049043488,-500.0,0.00015,2]
[419249173,1775049043498,-500.0,0.00015,2]
[419249174,1775049043507,-500.0,0.00015,2]
[419249175,1775049043516,-500.0,0.00015,2]
[419249176,1775049043526,-500.0,0.00015,2]
[419249177,1775049043535,-500.0,0.00015,2]
[419249178,1775049043545,-500.0,0.00015,2]
[419249179,1775049043554,-500.0,0.00015,2]
[419249180,1775049043563,-500.0,0.00015,2]
[419249181,1775049043573,-500.0,0.00015,2]
[419249182,1775049043582,-500.0,0.00015,2]
[419249183,1775049043592,-500.0,0.00015,2]
[419249184,1775049043601,-500.0,0.00015,2]
[419249185,1775049043612,-500.0,0.00015,2]
[419249186,1775049043622,-500.0,0.00015,2]
[419249187,1775049043631,-500.0,0.00015,2]
[419249188,1775049043641,-500.0,0.00015,2]
[419249189,1775049043650,-500.0,0.00015,2]
[419249190,1775049043660,-500.0,0.00015,2]
[419249191,1775049043669,-500.0,0.00015,2]
[419249192,1775049043679,-500.0,0.00015,2]
[419249193,1775049043688,-500.0,0.00015,2]
[419249194,1775049043697,-500.0,0.00015,2]
[419249195,1775049043708,-500.0,0.00015,2]
[419249196,1775049043718,-500.0,0.00015,2]
[419249197,1775049043727,-500.0,0.00015,2]
[419249198,1775049043737,-500.0,0.00015,2]
[419249199,1775049043747,-520.06,0.00015,2]
[419249200,1775049043757,-500.0,0.00015,2]
[419249201,1775049043766,-14193.25412751,0.00015,7]
[419249202,1775049043775,-160.0,0.00015,2]
[419249203,1775049043785,-160.0,0.00015013,2]
[419249204,1775049043794,-160.0,0.00015013,2]
[419249205,1775049043804,-160.0,0.00015013,2]
[419249206,1775049043813,-10272.10520533,0.00015023,2]
[419249207,1775049043823,-500.0,0.00015023,2]
[419249208,1775049043832,-151.0,0.00015023,2]
[419249209,1775049043842,-293.17725025,0.00015023,2]
[419249210,1775049043851,-10652.17309792,0.00015078,2]
[419249211,1775049043862,-500.0,0.00015078,2]
[419249212,1775049043872,-151.0,0.00015078,2]